fUSD/lending_fUSD_20240619
["ID","MTS","AMOUNT","RATE_DAILY","PERIOD"]
[329907698,1718819432442,-11201.29864799,0.000118,2]
[329907699,1718819432457,-602.4599999,0.000118,2]
[329907700,1718819432471,-331.9599993,0.000118,2]
[329907701,1718819432484,-548.34318324,0.000118,2]
[329907702,1718819432497,-353.16772376,0.000118,2]
[329907703,1718819432508,-507.17,0.00011819,2]
[329907705,1718819433148,-1000.0,0.00011836,2]
[329907706,1718819433189,-174.59,0.00011847,2]
[329907707,1718819433212,-250.0,0.00011849,2]
[329907708,1718819433226,-150.0,0.00012055,2]
[329907709,1718819433236,-600.4,0.0001208,2]
[329907710,1718819433246,-193.92,0.00012288,2]
[329907711,1718819433256,-500.0,0.000123,4]
[329907712,1718819433266,-397.08,0.000123,2]
[329907713,1718819433275,-150.29,0.0001238,2]
[329907714,1718819433285,-1100.0,0.000124,4]
[329907715,1718819433294,-852.36,0.000124,2]
[329907716,1718819433303,-852.36,0.000124,2]
[329907717,1718819433312,-418.17,0.000124,2]
[329907718,1718819433322,-852.36,0.000124,2]
[329907719,1718819433336,-852.36,0.000124,2]
[329907720,1718819433345,-418.17,0.000124,2]
[329907721,1718819433356,-852.36,0.000124,2]
[329907722,1718819433367,-260.3095201,0.000125,4]
[329907723,1718819433380,-1339.6904799,0.000125,4]
[329907724,1718819433389,-418.17,0.00012587,2]
[329907725,1718819433399,-852.36,0.00012587,2]
[329907726,1718819433409,-852.36,0.00012587,2]
[329907727,1718819433419,-418.17,0.00012587,2]
[329907728,1718819433427,-418.17,0.00012587,2]
[329907729,1718819433436,-852.36,0.00012587,2]
[329907730,1718819433446,-418.17,0.00012587,2]
[329907731,1718819433456,-418.17,0.00012587,2]
[329907732,1718819433466,-852.36,0.00012587,2]
[329907733,1718819433475,-852.36,0.00012587,2]
[329907734,1718819433485,-418.17,0.00012587,2]
[329907735,1718819433495,-418.17,0.00012587,2]
[329907736,1718819433504,-852.36,0.00012587,2]
[329907737,1718819433513,-852.36,0.00012587,2]
[329907738,1718819433523,-418.17,0.00012587,2]
[329907739,1718819433532,-285.90759655,0.00012587,2]
[329907740,1718819433612,-566.45240345,0.00012587,2]
[329907741,1718819433624,-418.17,0.00012587,2]
[329907742,1718819433633,-852.36,0.00012587,2]
[329907743,1718819433642,-418.17,0.00012587,2]
[329907744,1718819433651,-852.36,0.00012587,2]
[329907745,1718819433660,-418.17,0.00012587,2]
[329907746,1718819433669,-443.59,0.00012587,2]
[329907747,1718819433679,-2200.0,0.000126,4]
[329907748,1718819433688,-833.78,0.00012655,2]
[329907749,1718819433698,-1437.35219212,0.000127,2]
[329907750,1718819433847,-666.42,0.000127,2]
[329907754,1718819438955,-2022.7165844,0.000127,2]
[329907755,1718819438968,-339.36258972,0.000127,2]
[329907756,1718819438980,-425.12106461,0.000127,2]
[329907757,1718819438992,-3396.04284698,0.000127,2]
[329907758,1718819439004,-3581.51011178,0.000127,2]
[329907759,1718819439015,-923.98452533,0.000127,2]
[329907760,1718819439027,-2373.6804,0.000127,2]
[329907761,1718819439040,-465.03184456,0.000127,2]
[329907762,1718819439052,-674.39882951,0.000127,2]
[329907763,1718819439065,-345.06572981,0.000127,2]
[329907764,1718819439078,-827.75998797,0.000127,2]
[329907765,1718819439091,-8974.46853107,0.000127,2]
[329907892,1718819440395,-505.3,0.000127,2]
[329907895,1718819440410,-425.80000015,0.000127,2]
[329907936,1718819440714,-1682.12616235,0.000127,2]
[329907939,1718819440726,-13076.34819964,0.000127,2]
[329907941,1718819440736,-2700.0,0.000127,4]
[329907943,1718819440746,-150.29,0.00012703,2]
[329907945,1718819440755,-4750.07096303,0.00012799,2]
[329907947,1718819440767,-5872.90422152,0.00012799,2]
[329907949,1718819440779,-1369.5368522,0.00012799,2]
[329907952,1718819440793,-16016.49702183,0.00012799,2]
[329907954,1718819440805,-1529.12617148,0.00012799,2]
[329907956,1718819440816,-3015.24475082,0.00012799,2]
[329907958,1718819440828,-397.63820964,0.00012799,2]
[329907960,1718819440839,-43199.80326188,0.00012799,2]
[329907963,1718819440851,-2437.66559985,0.00012799,2]
[329907981,1718819441021,-755.58943814,0.00012799,2]
[329907984,1718819441033,-675.49153764,0.00012799,2]
[329907986,1718819441045,-5631.82482663,0.00012799,2]
[329907988,1718819441054,-4013.58977519,0.000128,2]
[329908252,1718819443680,-458.94774531,0.000128,2]
[329908255,1718819443692,-6246.50973598,0.000128,2]
[329908257,1718819443703,-550.0,0.000128,2]
[329908259,1718819443714,-993.56644484,0.000128,2]
[329908325,1718819444340,-4258.21478186,0.000128,2]
[329908348,1718819446504,-648.14925961,0.000128,2]
[329908349,1718819446516,-500.0,0.000128,2]
[329908350,1718819446528,-281.92942,0.000128,2]
[329908351,1718819446540,-34694.15564934,0.000128,2]
[329908352,1718819446550,-500.0,0.000128,4]
[329908353,1718819446560,-466.30124987,0.0001284,2]
[329908354,1718819446570,-343.47246419,0.0001287,2]
[329908355,1718819446580,-2590.62661,0.0001287,2]
[329908356,1718819446589,-512.7758,0.00012886,2]
[329908357,1718819446599,-180.7216555,0.000129,2]
[329908358,1718819446608,-500.0,0.000129,4]
[329908359,1718819446621,-1126.29159894,0.000129,2]
[329908360,1718819446630,-165.64959397,0.000129,2]
[329908361,1718819446639,-280.37880205,0.000129,2]
[329908362,1718819446650,-258.12664719,0.000129,2]
[329908363,1718819446660,-148.47910799,0.000129,2]
[329908364,1718819446673,-264.40106876,0.000129,2]
[329908365,1718819446682,-262.18,0.00012904,3]
[329908366,1718819446692,-450.0,0.0001298,2]
[329908367,1718819446702,-36.93572091,0.0001299,2]
[329908368,1718819446857,-154.83689402,0.0001299,2]
[329908369,1718819446868,-1126.29159885,0.00012991,2]
[329908370,1718819446878,-155.0,0.00012998,2]
[329908371,1718819446887,-352.32141165,0.00012998,2]
[329908372,1718819446897,-273.16120748,0.00012998,2]
[329908373,1718819446908,-256.04365099,0.00012998,2]
[329908374,1718819446918,-375.30576125,0.00012999,2]
[329908375,1718819446998,-1452.68022997,0.00012999,2]
[329908376,1718819447008,-412.79617968,0.00012999,2]
[329908377,1718819447017,-4391.27732075,0.00013,2]
[329908378,1718819447065,-1240.42306557,0.00013,2]
[329908379,1718819447078,-1938.14415443,0.00013,2]
[329908380,1718819447372,-72461.94658483,0.00013,2]
[329908381,1718819447383,-694.63,0.00013,2]
[329908382,1718819476094,183.04,9.994e-05,2]
[329908383,1718819538680,11885.52116243,9.994e-05,2]
[329908384,1718819645802,604.03,9.929e-05,2]
[329908385,1718819698065,181.48,9.221e-05,2]
[329908387,1718819977780,328.86,0.00025,60]
[329908388,1718820280736,166.24584998,0.00012998,120]
[329908394,1718820565143,573.82,9.579e-05,2]
[329908395,1718820605873,550.61439792,9.579e-05,2]
[329908396,1718820624192,367.07626528,9.579e-05,2]
[329908397,1718820632764,-368.18782557,0.00010774,2]
[329908400,1718820632774,-328.31347017,0.00010775,2]
[329908402,1718820632784,-2052.70227677,0.00010776,2]
[329908404,1718820632795,-529.36748381,0.00010876,2]
[329908407,1718820632804,-161.05154285,0.00011086,2]
[329908408,1718820632814,-686.09,0.00011469,2]
[329908410,1718820632823,-250.0,0.00011484,2]
[329908412,1718820632836,-193.92,0.00011485,2]
[329908414,1718820632846,-182.76,0.00011499,2]
[329908416,1718820632856,-1000.0,0.00011505,2]
[329908418,1718820632866,-150.29,0.00011601,2]
[329908420,1718820632875,-573.82,0.00011843,2]
[329908422,1718820632885,-150.0,0.00012161,2]
[329908423,1718820632895,-10558.57619674,0.00012162,2]
[329908424,1718820632907,-3522.42380326,0.00012162,2]
[329908425,1718820632917,-295.26,0.00012253,2]
[329908426,1718820632926,-295.26,0.00012257,2]
[329908427,1718820632936,-295.26,0.0001226,2]
[329908428,1718820632945,-295.26,0.00012263,2]
[329908429,1718820632955,-295.26,0.00012266,2]
[329908430,1718820632965,-499.99,0.00012266,2]
[329908431,1718820632974,-295.26,0.0001227,2]
[329908432,1718820632984,-295.26,0.00012273,2]
[329908433,1718820632993,-295.26,0.00012276,2]
[329908434,1718820633002,-295.26,0.00012279,2]
[329908435,1718820633012,-260.01261192,0.00012282,2]
[329908436,1718820633023,-35.24738808,0.00012282,2]
[329908437,1718820633033,-295.26,0.00012286,2]
[329908438,1718820633042,-295.26,0.00012289,2]
[329908440,1718820633052,-295.26,0.00012292,2]
[329908442,1718820633062,-295.26,0.00012295,2]
[329908444,1718820633071,-295.26,0.00012299,2]
[329908446,1718820633080,-295.26,0.00012302,2]
[329908447,1718820633090,-295.26,0.00012305,2]
[329908448,1718820633099,-295.26,0.00012308,2]
[329908449,1718820633109,-295.26,0.00012312,2]
[329908450,1718820633118,-295.26,0.00012315,2]
[329908451,1718820633128,-626.90005025,0.00012478,2]
[329908452,1718820633138,-1000.0,0.000127,2]
[329908453,1718820633148,-1909.67060032,0.0001287,2]
[329908454,1718820633157,-1336.64117685,0.0001287,2]
[329908455,1718820633170,-822.21433315,0.0001287,2]
[329908456,1718820633180,-2672.55519188,0.00012899,2]
[329908457,1718820633191,-1074.86340812,0.00012899,2]
[329908458,1718820633200,-180.7216555,0.000129,2]
[329908459,1718820633211,-990.9124242,0.000129,2]
[329908460,1718820633220,-415.55752037,0.000129,2]
[329908461,1718820633232,-182.76,0.00012936,2]
[329908462,1718820633242,-247.07773472,0.0001299,2]
[329908463,1718820633251,-155.0,0.00012998,2]
[329908464,1718820633261,-2715.7502117,0.00012998,2]
[329908465,1718820633273,-40886.97164569,0.00012998,2]
[329908466,1718820633282,-155.0,0.00012998,2]
[329908467,1718820633292,-201.62936954,0.00012998,2]
[329908468,1718820633302,-529.23291916,0.00012998,2]
[329908469,1718820633311,-2193.44356615,0.00012999,2]
[329908470,1718820633321,-254.98165876,0.00012999,2]
[329908471,1718820633331,-631.24951414,0.00012999,2]
[329908472,1718820633341,-32608.0,0.00012999,2]
[329908473,1718820633351,-150.0,0.00012999,2]
[329908474,1718820633360,-1191725.01762656,0.00012999,2]
[329908475,1718820633372,-1841.02372038,0.00012999,2]
[329908476,1718820633384,-392.24115815,0.00012999,2]
[329908477,1718820633396,-12178.03130439,0.00012999,2]
[329908478,1718820633465,-5401.77045646,0.00012999,2]
[329908479,1718820633477,-269.09758648,0.00012999,2]
[329908480,1718820633488,-6855.0,0.00012999,2]
[329908481,1718820633499,-1909.67060032,0.00012999,2]
[329908484,1718820638741,-769.96443153,0.00012999,2]
[329908485,1718820638758,-3778.34015739,0.00012999,2]
[329908486,1718820638770,-427.20419193,0.00012999,2]
[329908487,1718820638781,-911.5694948,0.00012999,2]
[329908488,1718820638795,-132342.82746513,0.00012999,2]
[329908489,1718820638804,-935785.73479794,0.00013,2]
[329908490,1718820638816,-833.69583873,0.00013,2]
[329908491,1718820638829,-311.184893,0.00013,2]
[329908492,1718820638842,-6512.96046108,0.00013,2]
[329908493,1718820638854,-1520.31444237,0.00013,2]
[329908494,1718820638865,-1436.53967427,0.00013,2]
[329908495,1718820638877,-11044.04393456,0.00013,2]
[329908496,1718820639089,-10919.62860752,0.00013,2]
[329908497,1718820639101,-285.35042775,0.00013,2]
[329908498,1718820639113,-51487.63135567,0.00013,2]
[329908499,1718820639125,-26842.12181543,0.00013,2]
[329908500,1718820639137,-13252.79963779,0.00013,2]
[329908506,1718820641057,-297.205001,0.00012997,2]
[329908507,1718820641070,-458.30137817,0.00012997,2]
[329908508,1718820641079,-140008.84299917,0.00013,2]
[329908509,1718820641126,-6901.89399999,0.00013,2]
[329908510,1718820641137,-576.1459471,0.00013,2]
[329908511,1718820641148,-1664.55927817,0.00013,2]
[329908512,1718820641160,-1220.82774406,0.00013,2]
[329908513,1718820641171,-276.88129996,0.00013,2]
[329908514,1718820641182,-275.346,0.00013,2]
[329908516,1718820641378,-6161.1919003,0.00013,2]
[329908517,1718820641390,-4906.4475,0.00013,2]
[329908518,1718820641402,-67153.44539544,0.00013,2]
[329908519,1718820641413,-760.11591725,0.00013,2]
[329908520,1718820641425,-359.45574608,0.00013,2]
[329908521,1718820641436,-1216.15843688,0.00013,2]
[329908531,1718820642248,305.89688774,9.579e-05,2]
[329908537,1718820643910,-394.58101345,0.00013,2]
[329908538,1718820643922,-1366.18653492,0.00013,2]
[329908539,1718820643934,-688.56235155,0.00013,2]
[329908540,1718820643945,-988.0,0.00013,2]
[329908541,1718820643955,-93148.32834824,0.00013,2]
[329908542,1718820644202,-520.48129284,0.00013,2]
[329908547,1718820644214,-846.50599989,0.00013,2]
[329908550,1718820644228,-7527.52000004,0.00013,2]
[329908553,1718820644239,-360.38286195,0.00013,2]
[329908555,1718820644251,-5531.82852246,0.00013,2]
[329908557,1718820644263,-5748.17421115,0.00013,2]
[329908559,1718820644274,-11260.56224255,0.00013,2]
[329908599,1718820646783,-445.62000001,0.00012621,2]
[329908600,1718820646796,-554.37999999,0.00012621,2]
[329908601,1718820646806,-112.85799241,0.00012999,2]
[329908602,1718820646817,-222.90897602,0.00012999,2]
[329908603,1718820646826,-529.04223313,0.00012999,2]
[329908604,1718820646838,-1077.79466655,0.00013,2]
[329908605,1718820647052,-918.5677849,0.00013,2]
[329908606,1718820647066,-15532.74296992,0.00013,2]
[329908607,1718820647078,-1336.47804719,0.00013,2]
[329908608,1718820647103,-1800.44920986,0.00013,2]
[329908609,1718820647114,-1930.83346233,0.00013,2]
[329908610,1718820647125,-3574.65,0.00013,2]
[329908611,1718820647138,-2620.62,0.00013,2]
[329908612,1718820647150,-711.93069116,0.00013,2]
[329908613,1718820647162,-5987.01390136,0.00013,2]
[329908614,1718820647174,-477.47355398,0.00013,2]
[329908615,1718820647186,-16918.89905673,0.00013,2]
[329908616,1718820647198,-883.07000001,0.00013,2]
[329908619,1718820647401,-606.02130008,0.00013,2]
[329908623,1718821198199,533.37,0.00010058,2]
[329908625,1718821287456,159.37227851,0.00010058,2]
[329908626,1718821301647,159.37227851,0.00010058,2]
[329908627,1718821319461,159.37227851,0.00010058,2]
[329908628,1718821335477,159.37227851,0.00010058,2]
[329908629,1718821361483,159.37227851,0.00010058,2]
[329908630,1718821377475,159.37227851,0.00010058,2]
[329908631,1718821399492,159.37227851,0.00010058,2]
[329908632,1718821419544,159.37227851,0.00010058,2]
[329908633,1718821426728,17687.31061078,0.00010058,2]
[329908634,1718821437507,159.37227851,0.00010058,2]
[329908635,1718821457498,159.37227851,0.00010058,2]
[329908636,1718821473497,241.65854131,0.00010058,2]
[329908652,1718821741311,506.7,9.686e-05,2]
[329908664,1718821832404,-423.32484874,0.00011603,2]
[329908665,1718821832417,-314.27790519,0.00011603,2]
[329908667,1718821832429,-24.82108948,0.00011603,2]
[329908669,1718821832438,-328.31347017,0.00011603,2]
[329908671,1718821832447,-623.90043808,0.00011604,2]
[329908673,1718821832458,-277.50880542,0.00011604,2]
[329908687,1718821832573,-939.82724979,0.00011604,2]
[329908689,1718821832584,-504.69421276,0.00011604,2]
[329908691,1718821832595,-736.11929395,0.00011604,2]
[329908693,1718821832604,-146.21532127,0.00011616,2]
[329908695,1718821832616,-36.54467873,0.00011616,2]
[329908697,1718821832626,-250.0,0.00011633,2]
[329908699,1718821832635,-250.0,0.0001165,2]
[329908701,1718821832644,-198.51829064,0.00011671,2]
[329908703,1718821832655,-101.48170936,0.00011671,2]
[329908705,1718821832664,-18724.84,0.00011672,2]
[329908707,1718821832675,-1000.0,0.00011693,2]
[329908709,1718821832684,-559.67,0.0001179,2]
[329908711,1718821832694,-506.7,0.0001195,2]
[329908713,1718821832704,-1701.42,0.00011981,2]
[329908715,1718821832713,-2177.42,0.00011981,2]
[329908717,1718821832722,-251.56,0.00012008,2]
[329908719,1718821832732,-150.15,0.00012117,2]
[329908721,1718821832741,-150.15,0.00012169,2]
[329908723,1718821832750,-150.15,0.00012222,2]
[329908724,1718821832760,-150.15,0.00012274,2]
[329908725,1718821832769,-304.36,0.00012313,2]
[329908726,1718821832780,-150.0,0.00012313,2]
[329908727,1718821832791,-423.43,0.00012313,2]
[329908728,1718821832800,-328.07,0.00012313,2]
[329908729,1718821832809,-726.53,0.00012313,2]
[329908730,1718821832819,-150.0,0.00012313,2]
[329908731,1718821832828,-150.0,0.00012313,2]
[329908732,1718821832837,-333.96,0.00012313,2]
[329908733,1718821832846,-150.15,0.00012327,2]
[329908734,1718821832856,-150.15,0.0001238,2]
[329908735,1718821832865,-150.15,0.00012432,2]
[329908736,1718821832874,-624.20977946,0.00012478,2]
[329908737,1718821832883,-150.15,0.00012485,2]
[329908738,1718821832892,-44.35079216,0.00012537,2]
[329908739,1718821832904,-105.79920784,0.00012537,2]
[329908740,1718821832914,-150.15,0.0001259,2]
[329908741,1718821832923,-150.15,0.00012643,2]
[329908742,1718821832932,-150.15,0.00012695,2]
[329908743,1718821832942,-150.15,0.00012748,2]
[329908744,1718821832951,-420.0,0.00012817,2]
[329908745,1718821832960,-253.45455834,0.00012868,2]
[329908746,1718821832970,-198.05574556,0.00012869,2]
[329908747,1718821832984,-421.55839924,0.00012869,2]
[329908748,1718821832995,-411.36967873,0.00012869,2]
[329908749,1718821833005,-234.91733005,0.0001287,2]
[329908750,1718821833016,-616.59989011,0.0001287,2]
[329908751,1718821833027,-599.46000008,0.0001287,2]
[329908752,1718821833131,-380.61802012,0.0001287,2]
[329908779,1718821837960,-3637.20517682,0.0001287,2]
[329908780,1718821838223,-4360.66537297,0.0001287,2]
[329908783,1718821838237,-3271.17585529,0.0001289,2]
[329908784,1718821838247,-200.0,0.00012896,2]
[329908786,1718821838257,-200.0,0.00012896,2]
[329908788,1718821838266,-5995.44324818,0.000129,2]
[329908790,1718821838276,-6023.3133,0.000129,2]
[329908792,1718821838287,-201.67803829,0.000129,2]
[329908794,1718821838298,-334.76566712,0.000129,2]
[329908796,1718821838308,-1327.50584646,0.000129,2]
[329908798,1718821838317,-5995.44324808,0.00012991,2]
[329908800,1718821838328,-1924.63887812,0.00012998,2]
[329908802,1718821838339,-265.00204327,0.00012998,2]
[329908804,1718821838349,-263.86585492,0.00012998,2]
[329908807,1718821838360,-2231.44085212,0.00012998,2]
[329908809,1718821838370,-393.33113171,0.00012998,2]
[329908811,1718821838380,-31242.04900817,0.00012999,2]
[329908813,1718821838390,-201.67803825,0.00013,2]
[329908815,1718821838399,-15479.40696374,0.00013,2]
[329908817,1718821838412,-13354.09620378,0.00013,2]
[329908819,1718821838423,-651.99,0.00013,2]
[329908821,1718821838435,-7911.35277425,0.00013,2]
[329908882,1718821840318,-11784.06453866,0.00013,2]
[329908883,1718821840331,-25588.92496355,0.00013,2]
[329908884,1718821840345,-748.32930338,0.00013,2]
[329908885,1718821840357,-452.73367357,0.00013,2]
[329908889,1718821840620,-710.26,0.00013,2]
[329908891,1718821840632,-1777.7292,0.00013,2]
[329908893,1718821840645,-3217.47124158,0.00013,2]
[329908978,1718821843416,-2385.14,0.00013,2]
[329908979,1718821843429,-7153.60866,0.00013,2]
[329908980,1718821843440,-707.3898016,0.00013,2]
[329908981,1718821843452,-447.68436432,0.00013,2]
[329908982,1718821843465,-732.51196725,0.00013,2]
[329908988,1718821843569,-210259.32875227,0.00013,2]
[329908989,1718821843581,-2421.6,0.00013,2]
[329908990,1718821843592,-21819.99370451,0.00013,2]
[329908991,1718821843604,-401.38602258,0.00013,2]
[329908992,1718821843616,-4648.47061712,0.00013,2]
[329909001,1718821846352,-314.39245415,0.00012999,2]
[329909002,1718821846362,-943.29791222,0.00013,2]
[329909003,1718821846666,-6701.54221176,0.00013,2]
[329909004,1718821851494,2555.49409125,7.265e-05,2]
[329909005,1718821867953,155.21140818,9.749e-05,2]
[329909006,1718821925774,301.31067515,0.0001,2]
[329909007,1718821929838,958.91362307,9.262e-05,2]
[329909008,1718821931422,155.0,9.749e-05,2]
[329909009,1718821932763,155.0,9.749e-05,2]
[329909010,1718821933943,1364.80333341,9.749e-05,2]
[329909011,1718821934869,348.27605979,9.749e-05,2]
[329909012,1718821938785,6446.11291329,9.749e-05,2]
[329909013,1718821939862,363.30221515,9.749e-05,2]
[329909014,1718821942774,290.13912195,9.749e-05,2]
[329909015,1718821943814,155.28210205,9.262e-05,2]
[329909016,1718821961516,226.54300481,0.0001,2]
[329909017,1718821964184,948.96382231,9.749e-05,2]
[329909018,1718821980086,948.96382231,9.262e-05,2]
[329909019,1718821996085,948.96382231,9.262e-05,2]
[329909020,1718822020099,948.96382231,9.262e-05,2]
[329909021,1718822032096,171.91,9.481e-05,2]
[329909022,1718822038120,491.84561076,9.262e-05,2]
[329909023,1718822196060,155.0,9.262e-05,2]
[329909024,1718822197970,4021.38414426,0.0001,2]
[329909025,1718822237188,209.90045835,0.0001,2]
[329909027,1718822452585,505.73,9.096e-05,2]
[329909028,1718822727083,4460.46453,0.00010059,2]
[329909029,1718822758176,552.23907051,0.00010059,2]
[329909030,1718822765771,13331.18708721,0.00010007,2]
[329909031,1718822773104,4765.59309933,0.00010059,2]
[329909032,1718822776178,553.00399817,0.00010059,2]
[329909033,1718822789112,4765.59309933,0.00010059,2]
[329909035,1718822807110,4765.59309933,0.00010059,2]
[329909036,1718822825142,4765.59309933,0.00010059,2]
[329909038,1718822845102,4765.59309933,0.00010059,2]
[329909041,1718822852540,155.0,0.000101,2]
[329909042,1718822853254,304.92097551,0.000101,2]
[329909043,1718822857542,328.31347017,0.000101,2]
[329909044,1718822857900,291.98506278,0.000101,2]
[329909045,1718822861125,2739.23063379,0.00010059,2]
[329909046,1718822877675,2555.49409125,7.544e-05,2]
[329909047,1718822899575,2555.49409125,7.544e-05,2]
[329909048,1718822919195,363.30221515,7.544e-05,2]
[329909049,1718822919808,552.04753878,0.0001,2]
[329909050,1718822921589,2555.49409125,5.658e-05,2]
[329909051,1718822921890,958.68763856,7.167e-05,2]
[329909052,1718822926858,290.13912195,7.544e-05,2]
[329909053,1718822930128,1364.80333341,7.544e-05,2]
[329909054,1718822934488,348.27605979,7.544e-05,2]
[329909055,1718822935151,363.30221515,7.544e-05,2]
[329909056,1718822939781,958.68763856,7.167e-05,2]
[329909057,1718822945591,2555.49409125,5.658e-05,2]
[329909058,1718822947988,1364.80333341,7.544e-05,2]
[329909059,1718822950462,375.54107673,7.544e-05,2]
[329909060,1718822950836,290.13912195,7.544e-05,2]
[329909061,1718822955150,363.30221515,7.544e-05,2]
[329909062,1718822960114,958.68763856,7.167e-05,2]
[329909063,1718822966804,290.13912195,7.544e-05,2]
[329909064,1718822967609,2555.49409125,5.658e-05,2]
[329909065,1718822971962,591.65632647,7.544e-05,2]
[329909066,1718822975966,958.68763856,7.167e-05,2]
[329909067,1718822986838,376.11287678,7.544e-05,2]
[329909068,1718822993160,251.23413843,7.544e-05,2]
[329909069,1718822993595,330.03283136,5.658e-05,2]
[329909070,1718822995804,552.23907051,0.0001,2]
[329909071,1718822997779,912.54427873,7.167e-05,2]
[329909072,1718822999835,180.91246008,0.0001,2]
[329909073,1718823017569,504.57,8.907e-05,2]
[329909074,1718823017772,180.91246008,0.0001,2]
[329909075,1718823017818,555.12752052,0.0001,2]
[329909085,1718823032515,-328.31347017,0.00010051,2]
[329909086,1718823032526,-296.30777465,0.00010051,2]
[329909087,1718823032537,-155.0,0.00010052,2]
[329909088,1718823032547,-1976.85810584,0.00010052,2]
[329909089,1718823032561,-410.17832564,0.00010053,2]
[329909090,1718823032572,-2026.36246554,0.00010059,2]
[329909091,1718823032583,-326.89,0.00010569,2]
[329909092,1718823032594,-150.0,0.00010712,2]
[329909093,1718823032603,-339.25724207,0.00010775,2]
[329909094,1718823032612,-155.47278461,0.00010836,2]
[329909095,1718823032622,-308.79440374,0.00010836,2]
[329909096,1718823032635,-290.89568622,0.00010836,2]
[329909097,1718823032645,-159.7660222,0.00010837,2]
[329909098,1718823032661,-7319.27284131,0.00010838,2]
[329909099,1718823032674,-25784.89240085,0.00010838,2]
[329909100,1718823032690,-281442.44740034,0.00010838,2]
[329909101,1718823032700,-14851.134,0.00010838,2]
[329909102,1718823032710,-1159.08,0.0001085,2]
[329909103,1718823032720,-250.0,0.00010875,2]
[329909104,1718823032730,-250.0,0.00010875,2]
[329909105,1718823032739,-511.05,0.00010892,2]
[329909106,1718823032748,-14682.0157825,0.00011,2]
[329909107,1718823032757,-504.57,0.00011171,2]
[329909108,1718823032766,-339.25724206,0.00011306,2]
[329909109,1718823032775,-8703.86,0.0001136,2]
[329909110,1718823032785,-447.43,0.00011758,2]
[329909111,1718823032794,-163.41,0.00011773,2]
[329909112,1718823032803,-447.43,0.0001179,2]
[329909113,1718823032812,-1223.58816666,0.000118,2]
[329909114,1718823032822,-447.43,0.00011822,2]
[329909115,1718823032831,-339.25724206,0.00011838,2]
[329909116,1718823032840,-447.43,0.00011854,2]
[329909117,1718823032849,-447.43,0.00011887,2]
[329909119,1718823032859,-326.89,0.00011891,2]
[329909121,1718823032868,-447.43,0.00011919,2]
[329909123,1718823032877,-447.43,0.00011951,2]
[329909124,1718823032886,-1000.0,0.00011967,2]
[329909126,1718823032896,-150.0,0.00011978,2]
[329909128,1718823032905,-526.73,0.00011978,2]
[329909130,1718823032914,-447.43,0.00011983,2]
[329909132,1718823032923,-1141.89204243,0.00012,2]
[329909133,1718823032932,-447.43,0.00012016,2]
[329909135,1718823032943,-172.31,0.00012033,2]
[329909136,1718823032952,-152.0,0.00012033,2]
[329909137,1718823032961,-447.43,0.00012048,2]
[329909138,1718823032971,-447.43,0.0001208,2]
[329909139,1718823032980,-447.43,0.00012112,2]
[329909140,1718823032990,-447.43,0.00012145,2]
[329909141,1718823032999,-447.43,0.00012177,2]
[329909142,1718823033008,-169.75322856,0.00012206,2]
[329909143,1718823033018,-447.43,0.00012209,2]
[329909144,1718823033027,-447.43,0.00012241,2]
[329909145,1718823033037,-447.43,0.00012274,2]
[329909146,1718823033047,-527.36,0.00012278,2]
[329909147,1718823033056,-150.0,0.00012278,2]
[329909148,1718823033066,-164.71848981,0.0001229,2]
[329909149,1718823033075,-417493.591747,0.000123,2]
[329909150,1718823033085,-447.43,0.00012306,2]
[329909151,1718823033095,-447.43,0.00012338,2]
[329909152,1718823033104,-339.25724206,0.00012369,2]